{"text_format":"1","workbook":"xlsx","n_sheets":1,"sheets":["data"],"not_rendered":{"charts":0,"images":0,"macros":1,"external_links":0,"defined_names":4,"comments":0,"pivot_tables":0},"unopened":[],"bounds":{"document_bytes":16777216,"sheet_cells":100000,"rows_first":2000,"rows_last":500,"rows_between":2000,"halvings":0,"cell_chars":16384,"cell_head_chars":4096},"cells_cut":0,"cells_raw":0,"read":"whole","date_system":"1900"}

{"sheet":"data","index":0,"n_rows":18,"n_cols":23,"rows_kept":18,"cut":false,"hidden":false,"merged":[[1,0,1,1],[3,0,3,1],[3,2,3,5],[3,6,3,22]]}
[]
[2016]
[]
["date",null,"suppliers",null,null,null,"hours and costs"]
["wk ","Q","name","type of material","type","liter an hour"," date Monday","quantity Monday","date Tuesday","quantity Tuesdat","date Wednesday","quantity Wednesday","date Thursday","quantity Thursday","date Friday","quantity Friday","date Saturday","quantity Saturday","total Monday to Saturday","unit","prijs per unit","amount","remark"]
[5,{"$f":"IF(Tabel1[[#This Row],[wk ]]=0,\" \",IF(Tabel1[[#This Row],[wk ]]<14,1,IF(Tabel1[[#This Row],[wk ]]<25,2,IF(Tabel1[[#This Row],[wk ]]<40,3,IF(Tabel1[[#This Row],[wk ]]>39,4)))))","v":1},"Argro","Rups graafmachine",345,46,{"$f":"+IF(Tabel1[[#This Row],[wk ]]>0,(7*Tabel1[[#This Row],[wk ]])+$A$1,\" \")","v":"1900-02-04"},8,{"$f":"+IF(Tabel1[[#This Row],[wk ]]>0,Tabel1[[#This Row],[ date Monday]]+1,\" \")","v":"1900-02-05"},null,{"$f":"+IF(Tabel1[[#This Row],[wk ]]>0,Tabel1[[#This Row],[date Tuesday]]+1,\" \")","v":"1900-02-06"},null,{"$f":"+IF(Tabel1[[#This Row],[wk ]]>0,Tabel1[[#This Row],[date Wednesday]]+1,\" \")","v":"1900-02-07"},null,{"$f":"+IF(Tabel1[[#This Row],[wk ]]>0,Tabel1[[#This Row],[date Thursday]]+1,\" \")","v":"1900-02-08"},null,{"$f":"+IF(Tabel1[[#This Row],[wk ]]>0,Tabel1[[#This Row],[date Friday]]+1,\" \")","v":"1900-02-09"},null,{"$f":"+Tabel1[[#This Row],[quantity Monday]]+Tabel1[[#This Row],[quantity Tuesdat]]+Tabel1[[#This Row],[quantity Wednesday]]+Tabel1[[#This Row],[quantity Thursday]]+Tabel1[[#This Row],[quantity Friday]]+Tabel1[[#This Row],[quantity Saturday]]","v":8},"uur",82,{"$f":"+Tabel1[[#This Row],[total Monday to Saturday]]*Tabel1[[#This Row],[prijs per unit]]","v":656}]
[26,{"$f":"IF(Tabel1[[#This Row],[wk ]]=0,\" \",IF(Tabel1[[#This Row],[wk ]]<14,1,IF(Tabel1[[#This Row],[wk ]]<25,2,IF(Tabel1[[#This Row],[wk ]]<40,3,IF(Tabel1[[#This Row],[wk ]]>39,4)))))","v":3},"Colpaart","Shovels","L110 E Peter",16,{"$f":"+IF(Tabel1[[#This Row],[wk ]]>0,(7*Tabel1[[#This Row],[wk ]])+$A$1,\" \")","v":"1900-06-30"},40,{"$f":"+IF(Tabel1[[#This Row],[wk ]]>0,Tabel1[[#This Row],[ date Monday]]+1,\" \")","v":"1900-07-01"},null,{"$f":"+IF(Tabel1[[#This Row],[wk ]]>0,Tabel1[[#This Row],[date Tuesday]]+1,\" \")","v":"1900-07-02"},null,{"$f":"+IF(Tabel1[[#This Row],[wk ]]>0,Tabel1[[#This Row],[date Wednesday]]+1,\" \")","v":"1900-07-03"},null,{"$f":"+IF(Tabel1[[#This Row],[wk ]]>0,Tabel1[[#This Row],[date Thursday]]+1,\" \")","v":"1900-07-04"},null,{"$f":"+IF(Tabel1[[#This Row],[wk ]]>0,Tabel1[[#This Row],[date Friday]]+1,\" \")","v":"1900-07-05"},null,{"$f":"+Tabel1[[#This Row],[quantity Monday]]+Tabel1[[#This Row],[quantity Tuesdat]]+Tabel1[[#This Row],[quantity Wednesday]]+Tabel1[[#This Row],[quantity Thursday]]+Tabel1[[#This Row],[quantity Friday]]+Tabel1[[#This Row],[quantity Saturday]]","v":40},"uur",60,{"$f":"+Tabel1[[#This Row],[total Monday to Saturday]]*Tabel1[[#This Row],[prijs per unit]]","v":2400}]
[26,{"$f":"IF(Tabel1[[#This Row],[wk ]]=0,\" \",IF(Tabel1[[#This Row],[wk ]]<14,1,IF(Tabel1[[#This Row],[wk ]]<25,2,IF(Tabel1[[#This Row],[wk ]]<40,3,IF(Tabel1[[#This Row],[wk ]]>39,4)))))","v":3},"Colpaart","Shovels","L110 E Peter",16,{"$f":"+IF(Tabel1[[#This Row],[wk ]]>0,(7*Tabel1[[#This Row],[wk ]])+$A$1,\" \")","v":"1900-06-30"},40,{"$f":"+IF(Tabel1[[#This Row],[wk ]]>0,Tabel1[[#This Row],[ date Monday]]+1,\" \")","v":"1900-07-01"},null,{"$f":"+IF(Tabel1[[#This Row],[wk ]]>0,Tabel1[[#This Row],[date Tuesday]]+1,\" \")","v":"1900-07-02"},null,{"$f":"+IF(Tabel1[[#This Row],[wk ]]>0,Tabel1[[#This Row],[date Wednesday]]+1,\" \")","v":"1900-07-03"},null,{"$f":"+IF(Tabel1[[#This Row],[wk ]]>0,Tabel1[[#This Row],[date Thursday]]+1,\" \")","v":"1900-07-04"},null,{"$f":"+IF(Tabel1[[#This Row],[wk ]]>0,Tabel1[[#This Row],[date Friday]]+1,\" \")","v":"1900-07-05"},null,{"$f":"+Tabel1[[#This Row],[quantity Monday]]+Tabel1[[#This Row],[quantity Tuesdat]]+Tabel1[[#This Row],[quantity Wednesday]]+Tabel1[[#This Row],[quantity Thursday]]+Tabel1[[#This Row],[quantity Friday]]+Tabel1[[#This Row],[quantity Saturday]]","v":40},"uur",60,{"$f":"+Tabel1[[#This Row],[total Monday to Saturday]]*Tabel1[[#This Row],[prijs per unit]]","v":2400}]
[26,{"$f":"IF(Tabel1[[#This Row],[wk ]]=0,\" \",IF(Tabel1[[#This Row],[wk ]]<14,1,IF(Tabel1[[#This Row],[wk ]]<25,2,IF(Tabel1[[#This Row],[wk ]]<40,3,IF(Tabel1[[#This Row],[wk ]]>39,4)))))","v":3},"Colpaart","Shovels","L110 E Peter",16,{"$f":"+IF(Tabel1[[#This Row],[wk ]]>0,(7*Tabel1[[#This Row],[wk ]])+$A$1,\" \")","v":"1900-06-30"},40,{"$f":"+IF(Tabel1[[#This Row],[wk ]]>0,Tabel1[[#This Row],[ date Monday]]+1,\" \")","v":"1900-07-01"},null,{"$f":"+IF(Tabel1[[#This Row],[wk ]]>0,Tabel1[[#This Row],[date Tuesday]]+1,\" \")","v":"1900-07-02"},null,{"$f":"+IF(Tabel1[[#This Row],[wk ]]>0,Tabel1[[#This Row],[date Wednesday]]+1,\" \")","v":"1900-07-03"},null,{"$f":"+IF(Tabel1[[#This Row],[wk ]]>0,Tabel1[[#This Row],[date Thursday]]+1,\" \")","v":"1900-07-04"},null,{"$f":"+IF(Tabel1[[#This Row],[wk ]]>0,Tabel1[[#This Row],[date Friday]]+1,\" \")","v":"1900-07-05"},null,{"$f":"+Tabel1[[#This Row],[quantity Monday]]+Tabel1[[#This Row],[quantity Tuesdat]]+Tabel1[[#This Row],[quantity Wednesday]]+Tabel1[[#This Row],[quantity Thursday]]+Tabel1[[#This Row],[quantity Friday]]+Tabel1[[#This Row],[quantity Saturday]]","v":40},"uur",60,{"$f":"+Tabel1[[#This Row],[total Monday to Saturday]]*Tabel1[[#This Row],[prijs per unit]]","v":2400}]
[26,{"$f":"IF(Tabel1[[#This Row],[wk ]]=0,\" \",IF(Tabel1[[#This Row],[wk ]]<14,1,IF(Tabel1[[#This Row],[wk ]]<25,2,IF(Tabel1[[#This Row],[wk ]]<40,3,IF(Tabel1[[#This Row],[wk ]]>39,4)))))","v":3},"Colpaart","Shovels","L110 E Peter",16,{"$f":"+IF(Tabel1[[#This Row],[wk ]]>0,(7*Tabel1[[#This Row],[wk ]])+$A$1,\" \")","v":"1900-06-30"},40,{"$f":"+IF(Tabel1[[#This Row],[wk ]]>0,Tabel1[[#This Row],[ date Monday]]+1,\" \")","v":"1900-07-01"},null,{"$f":"+IF(Tabel1[[#This Row],[wk ]]>0,Tabel1[[#This Row],[date Tuesday]]+1,\" \")","v":"1900-07-02"},null,{"$f":"+IF(Tabel1[[#This Row],[wk ]]>0,Tabel1[[#This Row],[date Wednesday]]+1,\" \")","v":"1900-07-03"},null,{"$f":"+IF(Tabel1[[#This Row],[wk ]]>0,Tabel1[[#This Row],[date Thursday]]+1,\" \")","v":"1900-07-04"},null,{"$f":"+IF(Tabel1[[#This Row],[wk ]]>0,Tabel1[[#This Row],[date Friday]]+1,\" \")","v":"1900-07-05"},null,{"$f":"+Tabel1[[#This Row],[quantity Monday]]+Tabel1[[#This Row],[quantity Tuesdat]]+Tabel1[[#This Row],[quantity Wednesday]]+Tabel1[[#This Row],[quantity Thursday]]+Tabel1[[#This Row],[quantity Friday]]+Tabel1[[#This Row],[quantity Saturday]]","v":40},"uur",60,{"$f":"+Tabel1[[#This Row],[total Monday to Saturday]]*Tabel1[[#This Row],[prijs per unit]]","v":2400}]
[null,{"$f":"IF(Tabel1[[#This Row],[wk ]]=0,\" \",IF(Tabel1[[#This Row],[wk ]]<14,1,IF(Tabel1[[#This Row],[wk ]]<25,2,IF(Tabel1[[#This Row],[wk ]]<40,3,IF(Tabel1[[#This Row],[wk ]]>39,4)))))","v":" "},null,null,null,null,{"$f":"+IF(Tabel1[[#This Row],[wk ]]>0,(7*Tabel1[[#This Row],[wk ]])+$A$1,\" \")","v":" "},null,{"$f":"+IF(Tabel1[[#This Row],[wk ]]>0,Tabel1[[#This Row],[ date Monday]]+1,\" \")","v":" "},null,{"$f":"+IF(Tabel1[[#This Row],[wk ]]>0,Tabel1[[#This Row],[date Tuesday]]+1,\" \")","v":" "},null,{"$f":"+IF(Tabel1[[#This Row],[wk ]]>0,Tabel1[[#This Row],[date Wednesday]]+1,\" \")","v":" "},null,{"$f":"+IF(Tabel1[[#This Row],[wk ]]>0,Tabel1[[#This Row],[date Thursday]]+1,\" \")","v":" "},null,{"$f":"+IF(Tabel1[[#This Row],[wk ]]>0,Tabel1[[#This Row],[date Friday]]+1,\" \")","v":" "},null,{"$f":"+Tabel1[[#This Row],[quantity Monday]]+Tabel1[[#This Row],[quantity Tuesdat]]+Tabel1[[#This Row],[quantity Wednesday]]+Tabel1[[#This Row],[quantity Thursday]]+Tabel1[[#This Row],[quantity Friday]]+Tabel1[[#This Row],[quantity Saturday]]","v":0},null,null,{"$f":"+Tabel1[[#This Row],[total Monday to Saturday]]*Tabel1[[#This Row],[prijs per unit]]","v":0}]
[null,{"$f":"IF(Tabel1[[#This Row],[wk ]]=0,\" \",IF(Tabel1[[#This Row],[wk ]]<14,1,IF(Tabel1[[#This Row],[wk ]]<25,2,IF(Tabel1[[#This Row],[wk ]]<40,3,IF(Tabel1[[#This Row],[wk ]]>39,4)))))","v":" "},null,null,null,null,{"$f":"+IF(Tabel1[[#This Row],[wk ]]>0,(7*Tabel1[[#This Row],[wk ]])+$A$1,\" \")","v":" "},null,{"$f":"+IF(Tabel1[[#This Row],[wk ]]>0,Tabel1[[#This Row],[ date Monday]]+1,\" \")","v":" "},null,{"$f":"+IF(Tabel1[[#This Row],[wk ]]>0,Tabel1[[#This Row],[date Tuesday]]+1,\" \")","v":" "},null,{"$f":"+IF(Tabel1[[#This Row],[wk ]]>0,Tabel1[[#This Row],[date Wednesday]]+1,\" \")","v":" "},null,{"$f":"+IF(Tabel1[[#This Row],[wk ]]>0,Tabel1[[#This Row],[date Thursday]]+1,\" \")","v":" "},null,{"$f":"+IF(Tabel1[[#This Row],[wk ]]>0,Tabel1[[#This Row],[date Friday]]+1,\" \")","v":" "},null,{"$f":"+Tabel1[[#This Row],[quantity Monday]]+Tabel1[[#This Row],[quantity Tuesdat]]+Tabel1[[#This Row],[quantity Wednesday]]+Tabel1[[#This Row],[quantity Thursday]]+Tabel1[[#This Row],[quantity Friday]]+Tabel1[[#This Row],[quantity Saturday]]","v":0},null,null,{"$f":"+Tabel1[[#This Row],[total Monday to Saturday]]*Tabel1[[#This Row],[prijs per unit]]","v":0}]
[null,{"$f":"IF(Tabel1[[#This Row],[wk ]]=0,\" \",IF(Tabel1[[#This Row],[wk ]]<14,1,IF(Tabel1[[#This Row],[wk ]]<25,2,IF(Tabel1[[#This Row],[wk ]]<40,3,IF(Tabel1[[#This Row],[wk ]]>39,4)))))","v":" "},null,null,null,null,{"$f":"+IF(Tabel1[[#This Row],[wk ]]>0,(7*Tabel1[[#This Row],[wk ]])+$A$1,\" \")","v":" "},null,{"$f":"+IF(Tabel1[[#This Row],[wk ]]>0,Tabel1[[#This Row],[ date Monday]]+1,\" \")","v":" "},null,{"$f":"+IF(Tabel1[[#This Row],[wk ]]>0,Tabel1[[#This Row],[date Tuesday]]+1,\" \")","v":" "},null,{"$f":"+IF(Tabel1[[#This Row],[wk ]]>0,Tabel1[[#This Row],[date Wednesday]]+1,\" \")","v":" "},null,{"$f":"+IF(Tabel1[[#This Row],[wk ]]>0,Tabel1[[#This Row],[date Thursday]]+1,\" \")","v":" "},null,{"$f":"+IF(Tabel1[[#This Row],[wk ]]>0,Tabel1[[#This Row],[date Friday]]+1,\" \")","v":" "},null,{"$f":"+Tabel1[[#This Row],[quantity Monday]]+Tabel1[[#This Row],[quantity Tuesdat]]+Tabel1[[#This Row],[quantity Wednesday]]+Tabel1[[#This Row],[quantity Thursday]]+Tabel1[[#This Row],[quantity Friday]]+Tabel1[[#This Row],[quantity Saturday]]","v":0},null,null,{"$f":"+Tabel1[[#This Row],[total Monday to Saturday]]*Tabel1[[#This Row],[prijs per unit]]","v":0}]
[null,{"$f":"IF(Tabel1[[#This Row],[wk ]]=0,\" \",IF(Tabel1[[#This Row],[wk ]]<14,1,IF(Tabel1[[#This Row],[wk ]]<25,2,IF(Tabel1[[#This Row],[wk ]]<40,3,IF(Tabel1[[#This Row],[wk ]]>39,4)))))","v":" "},null,null,null,null,{"$f":"+IF(Tabel1[[#This Row],[wk ]]>0,(7*Tabel1[[#This Row],[wk ]])+$A$1,\" \")","v":" "},null,{"$f":"+IF(Tabel1[[#This Row],[wk ]]>0,Tabel1[[#This Row],[ date Monday]]+1,\" \")","v":" "},null,{"$f":"+IF(Tabel1[[#This Row],[wk ]]>0,Tabel1[[#This Row],[date Tuesday]]+1,\" \")","v":" "},null,{"$f":"+IF(Tabel1[[#This Row],[wk ]]>0,Tabel1[[#This Row],[date Wednesday]]+1,\" \")","v":" "},null,{"$f":"+IF(Tabel1[[#This Row],[wk ]]>0,Tabel1[[#This Row],[date Thursday]]+1,\" \")","v":" "},null,{"$f":"+IF(Tabel1[[#This Row],[wk ]]>0,Tabel1[[#This Row],[date Friday]]+1,\" \")","v":" "},null,{"$f":"+Tabel1[[#This Row],[quantity Monday]]+Tabel1[[#This Row],[quantity Tuesdat]]+Tabel1[[#This Row],[quantity Wednesday]]+Tabel1[[#This Row],[quantity Thursday]]+Tabel1[[#This Row],[quantity Friday]]+Tabel1[[#This Row],[quantity Saturday]]","v":0},null,null,{"$f":"+Tabel1[[#This Row],[total Monday to Saturday]]*Tabel1[[#This Row],[prijs per unit]]","v":0}]
[null,{"$f":"IF(Tabel1[[#This Row],[wk ]]=0,\" \",IF(Tabel1[[#This Row],[wk ]]<14,1,IF(Tabel1[[#This Row],[wk ]]<25,2,IF(Tabel1[[#This Row],[wk ]]<40,3,IF(Tabel1[[#This Row],[wk ]]>39,4)))))","v":" "},null,null,null,null,{"$f":"+IF(Tabel1[[#This Row],[wk ]]>0,(7*Tabel1[[#This Row],[wk ]])+$A$1,\" \")","v":" "},null,{"$f":"+IF(Tabel1[[#This Row],[wk ]]>0,Tabel1[[#This Row],[ date Monday]]+1,\" \")","v":" "},null,{"$f":"+IF(Tabel1[[#This Row],[wk ]]>0,Tabel1[[#This Row],[date Tuesday]]+1,\" \")","v":" "},null,{"$f":"+IF(Tabel1[[#This Row],[wk ]]>0,Tabel1[[#This Row],[date Wednesday]]+1,\" \")","v":" "},null,{"$f":"+IF(Tabel1[[#This Row],[wk ]]>0,Tabel1[[#This Row],[date Thursday]]+1,\" \")","v":" "},null,{"$f":"+IF(Tabel1[[#This Row],[wk ]]>0,Tabel1[[#This Row],[date Friday]]+1,\" \")","v":" "},null,{"$f":"+Tabel1[[#This Row],[quantity Monday]]+Tabel1[[#This Row],[quantity Tuesdat]]+Tabel1[[#This Row],[quantity Wednesday]]+Tabel1[[#This Row],[quantity Thursday]]+Tabel1[[#This Row],[quantity Friday]]+Tabel1[[#This Row],[quantity Saturday]]","v":0},null,null,{"$f":"+Tabel1[[#This Row],[total Monday to Saturday]]*Tabel1[[#This Row],[prijs per unit]]","v":0}]
[null,{"$f":"IF(Tabel1[[#This Row],[wk ]]=0,\" \",IF(Tabel1[[#This Row],[wk ]]<14,1,IF(Tabel1[[#This Row],[wk ]]<25,2,IF(Tabel1[[#This Row],[wk ]]<40,3,IF(Tabel1[[#This Row],[wk ]]>39,4)))))","v":" "},null,null,null,null,{"$f":"+IF(Tabel1[[#This Row],[wk ]]>0,(7*Tabel1[[#This Row],[wk ]])+$A$1,\" \")","v":" "},null,{"$f":"+IF(Tabel1[[#This Row],[wk ]]>0,Tabel1[[#This Row],[ date Monday]]+1,\" \")","v":" "},null,{"$f":"+IF(Tabel1[[#This Row],[wk ]]>0,Tabel1[[#This Row],[date Tuesday]]+1,\" \")","v":" "},null,{"$f":"+IF(Tabel1[[#This Row],[wk ]]>0,Tabel1[[#This Row],[date Wednesday]]+1,\" \")","v":" "},null,{"$f":"+IF(Tabel1[[#This Row],[wk ]]>0,Tabel1[[#This Row],[date Thursday]]+1,\" \")","v":" "},null,{"$f":"+IF(Tabel1[[#This Row],[wk ]]>0,Tabel1[[#This Row],[date Friday]]+1,\" \")","v":" "},null,{"$f":"+Tabel1[[#This Row],[quantity Monday]]+Tabel1[[#This Row],[quantity Tuesdat]]+Tabel1[[#This Row],[quantity Wednesday]]+Tabel1[[#This Row],[quantity Thursday]]+Tabel1[[#This Row],[quantity Friday]]+Tabel1[[#This Row],[quantity Saturday]]","v":0},null,null,{"$f":"+Tabel1[[#This Row],[total Monday to Saturday]]*Tabel1[[#This Row],[prijs per unit]]","v":0}]
[null,{"$f":"IF(Tabel1[[#This Row],[wk ]]=0,\" \",IF(Tabel1[[#This Row],[wk ]]<14,1,IF(Tabel1[[#This Row],[wk ]]<25,2,IF(Tabel1[[#This Row],[wk ]]<40,3,IF(Tabel1[[#This Row],[wk ]]>39,4)))))","v":" "},null,null,null,null,{"$f":"+IF(Tabel1[[#This Row],[wk ]]>0,(7*Tabel1[[#This Row],[wk ]])+$A$1,\" \")","v":" "},null,{"$f":"+IF(Tabel1[[#This Row],[wk ]]>0,Tabel1[[#This Row],[ date Monday]]+1,\" \")","v":" "},null,{"$f":"+IF(Tabel1[[#This Row],[wk ]]>0,Tabel1[[#This Row],[date Tuesday]]+1,\" \")","v":" "},null,{"$f":"+IF(Tabel1[[#This Row],[wk ]]>0,Tabel1[[#This Row],[date Wednesday]]+1,\" \")","v":" "},null,{"$f":"+IF(Tabel1[[#This Row],[wk ]]>0,Tabel1[[#This Row],[date Thursday]]+1,\" \")","v":" "},null,{"$f":"+IF(Tabel1[[#This Row],[wk ]]>0,Tabel1[[#This Row],[date Friday]]+1,\" \")","v":" "},null,{"$f":"+Tabel1[[#This Row],[quantity Monday]]+Tabel1[[#This Row],[quantity Tuesdat]]+Tabel1[[#This Row],[quantity Wednesday]]+Tabel1[[#This Row],[quantity Thursday]]+Tabel1[[#This Row],[quantity Friday]]+Tabel1[[#This Row],[quantity Saturday]]","v":0},null,null,{"$f":"+Tabel1[[#This Row],[total Monday to Saturday]]*Tabel1[[#This Row],[prijs per unit]]","v":0}]
[null,null,null,null,null,null,null,{"$f":"SUBTOTAL(109,Tabel1[quantity Monday])","v":168},null,{"$f":"SUBTOTAL(109,Tabel1[quantity Tuesdat])","v":0},null,{"$f":"SUBTOTAL(109,Tabel1[quantity Wednesday])","v":0},null,{"$f":"SUBTOTAL(109,Tabel1[quantity Thursday])","v":0},null,{"$f":"SUBTOTAL(109,Tabel1[quantity Friday])","v":0},null,{"$f":"SUBTOTAL(109,Tabel1[quantity Saturday])","v":0},{"$f":"SUBTOTAL(109,Tabel1[total Monday to Saturday])","v":168},null,null,{"$f":"SUBTOTAL(109,V6:V17)","v":10256}]